[Event "Titled Tuesday Blitz August 08 Early 2023"]
[White "Gan-Od, Sereenen"]
[Black "Santos Flores, Alberto"]
[WhiteFideId "4901304"]
[BlackFideId "3601234"]
[WhiteElo "2762"]
[BlackElo "2563"]
[Result "1-0"]
[Round "7"]
[TimeControl "180+1"]
[Date "2023.08.08"]
[WhiteClock "0:00:42"]
[BlackClock "0:00:12"]
[Board "77"]

1. c4 {[%clk 0:03:00]}  c6 {[%clk 0:02:59]} 2. Nf3 {[%clk 0:03:00]}  d5 {[%clk 0:02:59]} 3. g3 {[%clk 0:03:01]}  Nf6 {[%clk 0:03:00]} 4. Bg2 {[%clk 0:03:02]}  Bf5 {[%clk 0:03:00]} 5. O-O {[%clk 0:03:03]}  h6 {[%clk 0:03:00]} 6. Qb3 {[%clk 0:03:03]}  Qb6 {[%clk 0:03:00]} 7. cxd5 {[%clk 0:03:03]}  cxd5 {[%clk 0:02:59]} 8. Nc3 {[%clk 0:03:02]}  e6 {[%clk 0:02:57]} 9. Qa4+ {[%clk 0:02:58]}  Nc6 {[%clk 0:02:55]} 10. d3 {[%clk 0:02:46]}  Be7 {[%clk 0:02:44]} 11. Bf4 {[%clk 0:02:26]}  O-O {[%clk 0:02:38]} 12. Qb3 {[%clk 0:02:26]}  Qxb3 {[%clk 0:02:35]} 13. axb3 {[%clk 0:02:26]}  a6 {[%clk 0:02:35]} 14. Rfc1 {[%clk 0:02:24]}  Rfc8 {[%clk 0:02:18]} 15. Na4 {[%clk 0:02:24]}  Nd7 {[%clk 0:02:18]} 16. Be3 {[%clk 0:02:14]}  e5 {[%clk 0:02:08]} 17. Nc5 {[%clk 0:02:03]}  d4 {[%clk 0:01:54]} 18. Nxd7 {[%clk 0:02:01]}  Bxd7 {[%clk 0:01:55]} 19. Bd2 {[%clk 0:01:59]}  Be6 {[%clk 0:01:54]} 20. b4 {[%clk 0:01:54]}  f6 {[%clk 0:01:51]} 21. Nh4 {[%clk 0:01:49]}  g5 {[%clk 0:00:36]} 22. Bxc6 {[%clk 0:01:41]}  Rxc6 {[%clk 0:00:33]} 23. Rxc6 {[%clk 0:01:41]}  bxc6 {[%clk 0:00:34]} 24. Nf3 {[%clk 0:01:41]}  Bd5 {[%clk 0:00:29]} 25. Ne1 {[%clk 0:01:36]}  Rb8 {[%clk 0:00:26]} 26. Ra4 {[%clk 0:01:23]}  Kf7 {[%clk 0:00:24]} 27. f4 {[%clk 0:01:20]}  Ke6 {[%clk 0:00:21]} 28. fxg5 {[%clk 0:01:18]}  hxg5 {[%clk 0:00:21]} 29. Nc2 {[%clk 0:01:11]}  g4 {[%clk 0:00:20]} 30. Rxa6 {[%clk 0:01:09]}  Kd7 {[%clk 0:00:18]} 31. Na3 {[%clk 0:01:07]}  Bxb4 {[%clk 0:00:17]} 32. Ra7+ {[%clk 0:01:07]}  Ke6 {[%clk 0:00:17]} 33. Bc1 {[%clk 0:00:55]}  Bd6 {[%clk 0:00:16]} 34. Ra6 {[%clk 0:00:49]}  f5 {[%clk 0:00:15]} 35. Nc4 {[%clk 0:00:43]}  Bxc4 {[%clk 0:00:15]} 36. dxc4 {[%clk 0:00:44]}  e4 {[%clk 0:00:14]} 37. Ra5 {[%clk 0:00:43]}  c5 {[%clk 0:00:14]} 38. Ra6 {[%clk 0:00:42]}  Ke7 {[%clk 0:00:13]} 39. Rxd6 {[%clk 0:00:42]}  Kxd6 {[%clk 0:00:12]} 40. Bf4+ {[%clk 0:00:42]}  Kc6 {[%clk 0:00:13]} 41. Bxb8 {[%clk 0:00:43]}  e3 {[%clk 0:00:13]} 42. Bf4 {[%clk 0:00:41]}  Kd7 {[%clk 0:00:13]} 43. Kf1 {[%clk 0:00:41]}  Kc6 {[%clk 0:00:13]} 44. Ke1 {[%clk 0:00:42]}  Kb6 {[%clk 0:00:13]} 45. Kd1 {[%clk 0:00:42]}  Ka5 {[%clk 0:00:14]} 46. Kc2 {[%clk 0:00:42]}  Kb4 {[%clk 0:00:14]} 47. Kd3 {[%clk 0:00:42]}  Kb3 {[%clk 0:00:13]} 48. Bd6 {[%clk 0:00:43]}  Kb4 {[%clk 0:00:13]} 49. Be7 {[%clk 0:00:42]}  Kb3 {[%clk 0:00:13]} 50. Bxc5 {[%clk 0:00:42]}  Kxb2 {[%clk 0:00:12]} 51. Bxd4+ {[%clk 0:00:42]} 1-0


[Site "https://www.chess.com"]

[Event "Titled Tuesday Blitz August 08 Early 2023"]
[White "Zelbel, Patrick"]
[Black "Deng, Henry"]
[WhiteFideId "24624322"]
[BlackFideId "30965454"]
[WhiteElo "2760"]
[BlackElo "2560"]
[Result "1-0"]
[Round "7"]
[TimeControl "180+1"]
[Date "2023.08.08"]
[WhiteClock "0:02:16"]
[BlackClock "0:01:58"]
[Board "78"]

1. e4 {[%clk 0:03:00]}  c5 {[%clk 0:02:59]} 2. Nf3 {[%clk 0:03:00]}  Nc6 {[%clk 0:02:59]} 3. b4 {[%clk 0:02:59]}  cxb4 {[%clk 0:02:55]} 4. d4 {[%clk 0:02:56]}  d5 {[%clk 0:02:55]} 5. exd5 {[%clk 0:02:53]}  Qxd5 {[%clk 0:02:55]} 6. c4 {[%clk 0:02:54]}  bxc3 {[%clk 0:02:41]} 7. Nxc3 {[%clk 0:02:54]}  Qa5 {[%clk 0:02:42]} 8. Qb3 {[%clk 0:02:54]}  Qb4 {[%clk 0:02:36]} 9. Qxb4 {[%clk 0:02:50]}  Nxb4 {[%clk 0:02:34]} 10. Bb5+ {[%clk 0:02:51]}  Bd7 {[%clk 0:02:32]} 11. Bxd7+ {[%clk 0:02:52]}  Kxd7 {[%clk 0:02:33]} 12. Rb1 {[%clk 0:02:52]}  Nd3+ {[%clk 0:02:29]} 13. Ke2 {[%clk 0:02:50]}  Nxc1+ {[%clk 0:02:29]} 14. Rhxc1 {[%clk 0:02:50]}  b6 {[%clk 0:02:28]} 15. Nb5 {[%clk 0:02:42]}  a6 {[%clk 0:02:27]} 16. Ne5+ {[%clk 0:02:39]}  Kd8 {[%clk 0:02:06]} 17. Nc7 {[%clk 0:02:17]}  Rc8 {[%clk 0:02:00]} 18. Nxf7+ {[%clk 0:02:16]}  Kd7 {[%clk 0:02:00]} 19. Ne5+ {[%clk 0:02:16]}  Kd8 {[%clk 0:01:58]} 20. Ne6+ {[%clk 0:02:16]} 1-0


[Site "https://www.chess.com"]

[Event "Titled Tuesday Blitz August 08 Early 2023"]
[White "Akhmedinov, Satbek"]
[Black "Girsh, Daniel"]
[WhiteFideId "13714287"]
[BlackFideId "30949190"]
[WhiteElo "2687"]
[BlackElo "2555"]
[Result "1-0"]
[Round "7"]
[TimeControl "180+1"]
[Date "2023.08.08"]
[WhiteClock "0:01:29"]
[BlackClock "0:00:17"]
[Board "80"]

1. e4 {[%clk 0:03:00]}  c6 {[%clk 0:02:57]} 2. Nf3 {[%clk 0:03:01]}  d5 {[%clk 0:02:57]} 3. Nc3 {[%clk 0:03:02]}  dxe4 {[%clk 0:02:57]} 4. Nxe4 {[%clk 0:03:03]}  Nf6 {[%clk 0:02:56]} 5. Qe2 {[%clk 0:03:04]}  Na6 {[%clk 0:02:56]} 6. Nxf6+ {[%clk 0:03:01]}  gxf6 {[%clk 0:02:55]} 7. d4 {[%clk 0:03:02]}  Bf5 {[%clk 0:02:54]} 8. Nh4 {[%clk 0:02:55]}  Bg6 {[%clk 0:02:49]} 9. Be3 {[%clk 0:02:55]}  e6 {[%clk 0:02:48]} 10. c3 {[%clk 0:02:55]}  Qd5 {[%clk 0:02:44]} 11. Nxg6 {[%clk 0:02:55]}  hxg6 {[%clk 0:02:44]} 12. h4 {[%clk 0:02:54]}  O-O-O {[%clk 0:02:29]} 13. Rh3 {[%clk 0:02:51]}  Kb8 {[%clk 0:02:27]} 14. b3 {[%clk 0:02:49]}  Ka8 {[%clk 0:02:17]} 15. O-O-O {[%clk 0:02:49]}  Ba3+ {[%clk 0:02:16]} 16. Kb1 {[%clk 0:02:49]}  f5 {[%clk 0:02:13]} 17. Bg5 {[%clk 0:02:48]}  Rde8 {[%clk 0:02:09]} 18. Bf6 {[%clk 0:02:47]}  Rh5 {[%clk 0:02:03]} 19. Qe5 {[%clk 0:02:39]}  Bd6 {[%clk 0:01:55]} 20. Qxd5 {[%clk 0:02:38]}  exd5 {[%clk 0:01:53]} 21. Kc2 {[%clk 0:02:33]}  Re6 {[%clk 0:01:53]} 22. Bg5 {[%clk 0:02:29]}  f6 {[%clk 0:01:51]} 23. Bc1 {[%clk 0:02:29]}  f4 {[%clk 0:01:37]} 24. Bd3 {[%clk 0:02:28]}  f5 {[%clk 0:01:32]} 25. Rdh1 {[%clk 0:02:29]}  c5 {[%clk 0:01:20]} 26. Bxa6 {[%clk 0:02:27]}  bxa6 {[%clk 0:01:21]} 27. Kd3 {[%clk 0:02:26]}  Re4 {[%clk 0:01:17]} 28. dxc5 {[%clk 0:02:24]}  Bxc5 {[%clk 0:01:16]} 29. f3 {[%clk 0:02:24]}  Re6 {[%clk 0:00:59]} 30. Bxf4 {[%clk 0:02:25]}  Kb7 {[%clk 0:00:58]} 31. b4 {[%clk 0:02:22]}  Bb6 {[%clk 0:00:57]} 32. a3 {[%clk 0:02:19]}  Kc6 {[%clk 0:00:56]} 33. g4 {[%clk 0:02:19]}  fxg4 {[%clk 0:00:55]} 34. fxg4 {[%clk 0:02:20]}  Rh7 {[%clk 0:00:55]} 35. h5 {[%clk 0:02:20]}  gxh5 {[%clk 0:00:53]} 36. Rxh5 {[%clk 0:02:21]}  Rf7 {[%clk 0:00:52]} 37. Rh6 {[%clk 0:02:20]}  Rxh6 {[%clk 0:00:50]} 38. Rxh6+ {[%clk 0:02:21]}  Kb5 {[%clk 0:00:50]} 39. Bc1 {[%clk 0:02:21]}  Rf3+ {[%clk 0:00:49]} 40. Kc2 {[%clk 0:02:21]}  Rf2+ {[%clk 0:00:47]} 41. Kd3 {[%clk 0:02:17]}  Rf1 {[%clk 0:00:42]} 42. Bd2 {[%clk 0:02:11]}  Rg1 {[%clk 0:00:41]} 43. g5 {[%clk 0:02:11]}  Rg3+ {[%clk 0:00:36]} 44. Kc2 {[%clk 0:02:10]}  d4 {[%clk 0:00:33]} 45. Kb3 {[%clk 0:02:09]}  a5 {[%clk 0:00:24]} 46. a4+ {[%clk 0:02:09]}  Ka6 {[%clk 0:00:24]} 47. b5+ {[%clk 0:02:05]}  Kb7 {[%clk 0:00:24]} 48. Rh7+ {[%clk 0:02:04]}  Kc8 {[%clk 0:00:24]} 49. Rh8+ {[%clk 0:02:01]}  Kd7 {[%clk 0:00:24]} 50. Rg8 {[%clk 0:01:46]}  dxc3 {[%clk 0:00:23]} 51. Bc1 {[%clk 0:01:47]}  Ke6 {[%clk 0:00:22]} 52. Kc2 {[%clk 0:01:43]}  Kf7 {[%clk 0:00:22]} 53. Rc8 {[%clk 0:01:38]}  Kg6 {[%clk 0:00:22]} 54. Rxc3 {[%clk 0:01:38]}  Rg2+ {[%clk 0:00:22]} 55. Kb3 {[%clk 0:01:38]}  Rg1 {[%clk 0:00:22]} 56. Rc6+ {[%clk 0:01:38]}  Kf5 {[%clk 0:00:22]} 57. Kc2 {[%clk 0:01:35]}  Rg2+ {[%clk 0:00:22]} 58. Kd3 {[%clk 0:01:35]}  Rg3+ {[%clk 0:00:22]} 59. Kc4 {[%clk 0:01:36]}  Rg4+ {[%clk 0:00:23]} 60. Kb3 {[%clk 0:01:32]}  Rg3+ {[%clk 0:00:22]} 61. Rc3 {[%clk 0:01:32]}  Rg1 {[%clk 0:00:21]} 62. Kc4 {[%clk 0:01:33]}  Rg4+ {[%clk 0:00:21]} 63. Kd5 {[%clk 0:01:33]}  Rd4+ {[%clk 0:00:20]} 64. Kc6 {[%clk 0:01:33]}  Rd1 {[%clk 0:00:20]} 65. Kb7 {[%clk 0:01:29]}  Rg1 {[%clk 0:00:19]} 66. Rc6 {[%clk 0:01:29]}  Rf1 {[%clk 0:00:17]} 67. Rf6+ {[%clk 0:01:29]} 1-0


[Site "https://www.chess.com"]

[Event "Titled Tuesday Blitz August 08 Early 2023"]
[White "jumpingknight20"]
[Black "Souleidis, Georgios"]
[BlackFideId "4206827"]
[WhiteElo "2686"]
[BlackElo "2552"]
[Result "1-0"]
[Round "7"]
[TimeControl "180+1"]
[Date "2023.08.08"]
[WhiteClock "0:02:26"]
[BlackClock "0:01:12"]
[Board "81"]

1. e4 {[%clk 0:03:00]}  c5 {[%clk 0:02:58]} 2. c3 {[%clk 0:02:59]}  d5 {[%clk 0:02:52]} 3. exd5 {[%clk 0:02:59]}  Qxd5 {[%clk 0:02:53]} 4. d4 {[%clk 0:02:59]}  Nf6 {[%clk 0:02:53]} 5. Nf3 {[%clk 0:03:00]}  Nc6 {[%clk 0:02:51]} 6. Be2 {[%clk 0:03:00]}  Bg4 {[%clk 0:02:51]} 7. O-O {[%clk 0:03:00]}  e6 {[%clk 0:02:51]} 8. Be3 {[%clk 0:03:00]}  cxd4 {[%clk 0:02:50]} 9. cxd4 {[%clk 0:03:01]}  Be7 {[%clk 0:02:48]} 10. h3 {[%clk 0:03:01]}  Bh5 {[%clk 0:02:47]} 11. Nc3 {[%clk 0:03:02]}  Qd8 {[%clk 0:02:45]} 12. Ne5 {[%clk 0:02:56]}  Bxe2 {[%clk 0:02:45]} 13. Qxe2 {[%clk 0:02:55]}  Rc8 {[%clk 0:02:40]} 14. Rfd1 {[%clk 0:02:54]}  O-O {[%clk 0:02:39]} 15. Qb5 {[%clk 0:02:42]}  Qc7 {[%clk 0:02:32]} 16. Rac1 {[%clk 0:02:39]}  a6 {[%clk 0:02:30]} 17. Qb3 {[%clk 0:02:29]}  Nxe5 {[%clk 0:02:09]} 18. dxe5 {[%clk 0:02:30]}  Qxe5 {[%clk 0:02:05]} 19. Qxb7 {[%clk 0:02:29]}  Bd6 {[%clk 0:01:29]} 20. g3 {[%clk 0:02:28]}  Bb4 {[%clk 0:01:12]} 21. Qxb4 {[%clk 0:02:26]} 1-0


[Site "https://www.chess.com"]

[Event "Titled Tuesday Blitz August 08 Early 2023"]
[White "Matinian, Nikita"]
[Black "Berezin, Viktor"]
[WhiteFideId "24129100"]
[BlackFideId "14107872"]
[WhiteElo "2673"]
[BlackElo "2534"]
[Result "1-0"]
[Round "7"]
[TimeControl "180+1"]
[Date "2023.08.08"]
[WhiteClock "0:00:17"]
[BlackClock "0:00:00"]
[Board "84"]

1. e4 {[%clk 0:03:00]}  c6 {[%clk 0:02:53]} 2. d4 {[%clk 0:03:00]}  d5 {[%clk 0:02:52]} 3. e5 {[%clk 0:03:01]}  Bf5 {[%clk 0:02:51]} 4. Nf3 {[%clk 0:03:01]}  e6 {[%clk 0:02:51]} 5. Be2 {[%clk 0:03:01]}  c5 {[%clk 0:02:50]} 6. Be3 {[%clk 0:03:00]}  Nc6 {[%clk 0:02:47]} 7. O-O {[%clk 0:02:54]}  cxd4 {[%clk 0:02:37]} 8. Nxd4 {[%clk 0:02:53]}  Nxd4 {[%clk 0:02:36]} 9. Qxd4 {[%clk 0:02:50]}  Ne7 {[%clk 0:02:35]} 10. Bb5+ {[%clk 0:02:50]}  Nc6 {[%clk 0:02:36]} 11. c4 {[%clk 0:02:50]}  a6 {[%clk 0:02:20]} 12. Bxc6+ {[%clk 0:02:50]}  bxc6 {[%clk 0:02:20]} 13. cxd5 {[%clk 0:02:45]}  exd5 {[%clk 0:02:00]} 14. Qa4 {[%clk 0:02:29]}  Bd7 {[%clk 0:01:58]} 15. Rd1 {[%clk 0:02:23]}  c5 {[%clk 0:01:55]} 16. Qa3 {[%clk 0:01:57]}  d4 {[%clk 0:01:49]} 17. Bf4 {[%clk 0:01:57]}  Be7 {[%clk 0:01:34]} 18. Qg3 {[%clk 0:01:57]}  g5 {[%clk 0:01:25]} 19. Bd2 {[%clk 0:01:47]}  Bc6 {[%clk 0:01:18]} 20. Na3 {[%clk 0:01:45]}  Qd5 {[%clk 0:01:18]} 21. Rac1 {[%clk 0:01:44]}  h5 {[%clk 0:01:16]} 22. Nc4 {[%clk 0:01:43]}  Rb8 {[%clk 0:00:52]} 23. Nd6+ {[%clk 0:01:38]}  Bxd6 {[%clk 0:00:23]} 24. exd6 {[%clk 0:01:39]}  h4 {[%clk 0:00:19]} 25. Re1+ {[%clk 0:01:30]}  Kf8 {[%clk 0:00:16]} 26. Qxg5 {[%clk 0:01:26]}  Qxg5 {[%clk 0:00:08]} 27. Bxg5 {[%clk 0:01:27]}  h3 {[%clk 0:00:06]} 28. Rxc5 {[%clk 0:01:23]}  Bxg2 {[%clk 0:00:06]} 29. d7 {[%clk 0:01:18]}  Kg7 {[%clk 0:00:06]} 30. d8=Q {[%clk 0:00:58]}  Rbxd8 {[%clk 0:00:06]} 31. Bxd8 {[%clk 0:00:59]}  Rxd8 {[%clk 0:00:06]} 32. Rg5+ {[%clk 0:00:59]}  Kf6 {[%clk 0:00:06]} 33. Rxg2 {[%clk 0:00:59]}  hxg2 {[%clk 0:00:07]} 34. Kxg2 {[%clk 0:01:00]}  d3 {[%clk 0:00:07]} 35. Kf3 {[%clk 0:00:57]}  Kf5 {[%clk 0:00:06]} 36. Ke3 {[%clk 0:00:53]}  Rb8 {[%clk 0:00:02]} 37. b3 {[%clk 0:00:52]}  Rd8 {[%clk 0:00:02]} 38. Kd2 {[%clk 0:00:52]}  Rh8 {[%clk 0:00:01]} 39. Kxd3 {[%clk 0:00:39]}  Rxh2 {[%clk 0:00:01]} 40. Re2 {[%clk 0:00:36]}  Kf4 {[%clk 0:00:01]} 41. Kc4 {[%clk 0:00:36]}  f5 {[%clk 0:00:02]} 42. a4 {[%clk 0:00:33]}  Kf3 {[%clk 0:00:03]} 43. Re6 {[%clk 0:00:28]}  Rxf2 {[%clk 0:00:01]} 44. Rxa6 {[%clk 0:00:27]}  f4 {[%clk 0:00:02]} 45. b4 {[%clk 0:00:25]}  Rc2+ {[%clk 0:00:02]} 46. Kb5 {[%clk 0:00:24]}  Rc8 {[%clk 0:00:03]} 47. Rf6 {[%clk 0:00:24]}  Ke3 {[%clk 0:00:03]} 48. a5 {[%clk 0:00:24]}  f3 {[%clk 0:00:03]} 49. a6 {[%clk 0:00:24]}  Re8 {[%clk 0:00:03]} 50. a7 {[%clk 0:00:21]}  f2 {[%clk 0:00:04]} 51. Ka6 {[%clk 0:00:18]}  Ke2 {[%clk 0:00:03]} 52. b5 {[%clk 0:00:19]}  Re3 {[%clk 0:00:01]} 53. a8=Q {[%clk 0:00:16]}  Ra3+ {[%clk 0:00:00]} 54. Kb7 {[%clk 0:00:17]} 1-0


[Site "https://www.chess.com"]

[Event "Titled Tuesday Blitz August 08 Early 2023"]
[White "Petrosian, Karlen"]
[Black "Shukhman, Anna"]
[WhiteFideId "4176146"]
[BlackFideId "54180058"]
[WhiteElo "2667"]
[BlackElo "2528"]
[Result "0-1"]
[Round "7"]
[TimeControl "180+1"]
[Date "2023.08.08"]
[WhiteClock "0:00:06"]
[BlackClock "0:00:15"]
[Board "85"]

1. e4 {[%clk 0:02:52]}  c5 {[%clk 0:02:59]} 2. c4 {[%clk 0:02:51]}  e5 {[%clk 0:02:58]} 3. Nc3 {[%clk 0:02:50]}  Nc6 {[%clk 0:02:58]} 4. g3 {[%clk 0:02:49]}  g6 {[%clk 0:02:58]} 5. Bg2 {[%clk 0:02:49]}  Bg7 {[%clk 0:02:59]} 6. d3 {[%clk 0:02:49]}  d6 {[%clk 0:02:57]} 7. a3 {[%clk 0:02:49]}  Nge7 {[%clk 0:02:56]} 8. Rb1 {[%clk 0:02:49]}  a6 {[%clk 0:02:54]} 9. b4 {[%clk 0:02:49]}  cxb4 {[%clk 0:02:55]} 10. axb4 {[%clk 0:02:50]}  O-O {[%clk 0:02:55]} 11. b5 {[%clk 0:02:50]}  axb5 {[%clk 0:02:54]} 12. Nxb5 {[%clk 0:02:51]}  f5 {[%clk 0:02:52]} 13. Ne2 {[%clk 0:02:43]}  f4 {[%clk 0:02:43]} 14. gxf4 {[%clk 0:02:42]}  Bg4 {[%clk 0:02:41]} 15. f3 {[%clk 0:02:37]}  Be6 {[%clk 0:02:29]} 16. O-O {[%clk 0:02:37]}  Qd7 {[%clk 0:02:00]} 17. Qe1 {[%clk 0:02:27]}  Bh3 {[%clk 0:01:52]} 18. Qg3 {[%clk 0:02:25]}  Bxg2 {[%clk 0:01:50]} 19. Qxg2 {[%clk 0:02:26]}  Ra2 {[%clk 0:01:49]} 20. Nbc3 {[%clk 0:02:22]}  Rc2 {[%clk 0:01:46]} 21. Rb2 {[%clk 0:01:37]}  Rxb2 {[%clk 0:01:44]} 22. Bxb2 {[%clk 0:01:38]}  exf4 {[%clk 0:01:44]} 23. Nd1 {[%clk 0:01:23]}  Qe6 {[%clk 0:01:33]} 24. Bxg7 {[%clk 0:01:22]}  Kxg7 {[%clk 0:01:34]} 25. Ndc3 {[%clk 0:01:20]}  Qe5 {[%clk 0:01:33]} 26. Qf2 {[%clk 0:01:18]}  Qg5+ {[%clk 0:01:24]} 27. Kh1 {[%clk 0:01:18]}  Ne5 {[%clk 0:01:24]} 28. Rb1 {[%clk 0:00:44]}  N7c6 {[%clk 0:00:54]} 29. Rxb7+ {[%clk 0:00:41]}  Rf7 {[%clk 0:00:54]} 30. Rxf7+ {[%clk 0:00:40]}  Kxf7 {[%clk 0:00:55]} 31. d4 {[%clk 0:00:36]}  Nxc4 {[%clk 0:00:53]} 32. Ng1 {[%clk 0:00:31]}  Ne3 {[%clk 0:00:47]} 33. Nce2 {[%clk 0:00:25]}  Qf6 {[%clk 0:00:45]} 34. Nh3 {[%clk 0:00:21]}  Nxd4 {[%clk 0:00:45]} 35. Nhxf4 {[%clk 0:00:18]}  Nxe2 {[%clk 0:00:43]} 36. Nxe2 {[%clk 0:00:19]}  Qa1+ {[%clk 0:00:41]} 37. Qg1 {[%clk 0:00:15]}  Qxg1+ {[%clk 0:00:40]} 38. Kxg1 {[%clk 0:00:16]}  Kf6 {[%clk 0:00:37]} 39. Kf2 {[%clk 0:00:16]}  Nc4 {[%clk 0:00:37]} 40. Nc3 {[%clk 0:00:13]}  Ke5 {[%clk 0:00:35]} 41. Ke2 {[%clk 0:00:13]}  g5 {[%clk 0:00:33]} 42. h3 {[%clk 0:00:13]}  Kf4 {[%clk 0:00:31]} 43. Kf2 {[%clk 0:00:13]}  Nb2 {[%clk 0:00:18]} 44. Ne2+ {[%clk 0:00:11]}  Ke5 {[%clk 0:00:18]} 45. Ke3 {[%clk 0:00:12]}  Nd1+ {[%clk 0:00:17]} 46. Kd2 {[%clk 0:00:11]}  Nf2 {[%clk 0:00:18]} 47. Ng1 {[%clk 0:00:10]}  Kf4 {[%clk 0:00:18]} 48. Ke1 {[%clk 0:00:08]}  Kg3 {[%clk 0:00:17]} 49. Ne2+ {[%clk 0:00:04]}  Kxf3 {[%clk 0:00:17]} 50. Nd4+ {[%clk 0:00:04]}  Kxe4 {[%clk 0:00:16]} 51. Nb5 {[%clk 0:00:05]}  Nxh3 {[%clk 0:00:16]} 52. Nxd6+ {[%clk 0:00:04]}  Kf4 {[%clk 0:00:16]} 53. Nf7 {[%clk 0:00:05]}  g4 {[%clk 0:00:15]} 54. Kf1 {[%clk 0:00:06]}  Ng5 {[%clk 0:00:15]} 55. Kg2 {[%clk 0:00:06]}  Nxf7 {[%clk 0:00:15]} 0-1


[Site "https://www.chess.com"]

[Event "Titled Tuesday Blitz August 08 Early 2023"]
[White "Goroshkov, Maksym"]
[Black "Sreyas Payyappat"]
[WhiteFideId "14142716"]
[BlackFideId "46674969"]
[WhiteElo "2654"]
[BlackElo "2525"]
[Result "1-0"]
[Round "7"]
[TimeControl "180+1"]
[Date "2023.08.08"]
[WhiteClock "0:01:23"]
[BlackClock "0:00:09"]
[Board "86"]

1. e4 {[%clk 0:02:59]}  c6 {[%clk 0:03:00]} 2. d4 {[%clk 0:02:57]}  d5 {[%clk 0:03:01]} 3. exd5 {[%clk 0:02:56]}  cxd5 {[%clk 0:03:01]} 4. c4 {[%clk 0:02:57]}  Nf6 {[%clk 0:02:59]} 5. Nc3 {[%clk 0:02:58]}  Nc6 {[%clk 0:02:57]} 6. Nf3 {[%clk 0:02:57]}  g6 {[%clk 0:02:56]} 7. cxd5 {[%clk 0:02:57]}  Nxd5 {[%clk 0:02:56]} 8. Bc4 {[%clk 0:02:58]}  Nxc3 {[%clk 0:02:44]} 9. bxc3 {[%clk 0:02:59]}  Bg7 {[%clk 0:02:42]} 10. O-O {[%clk 0:02:58]}  O-O {[%clk 0:02:38]} 11. Re1 {[%clk 0:02:58]}  Bg4 {[%clk 0:02:36]} 12. h3 {[%clk 0:02:57]}  Bxf3 {[%clk 0:02:30]} 13. Qxf3 {[%clk 0:02:57]}  e5 {[%clk 0:02:31]} 14. Ba3 {[%clk 0:02:57]}  exd4 {[%clk 0:02:27]} 15. Bxf8 {[%clk 0:02:55]}  Qxf8 {[%clk 0:02:28]} 16. Rad1 {[%clk 0:02:46]}  Ne5 {[%clk 0:02:16]} 17. Rxe5 {[%clk 0:02:34]}  Bxe5 {[%clk 0:02:13]} 18. cxd4 {[%clk 0:02:35]}  Bg7 {[%clk 0:02:12]} 19. Qxb7 {[%clk 0:02:34]}  a5 {[%clk 0:01:45]} 20. Bxf7+ {[%clk 0:02:33]}  Kh8 {[%clk 0:01:43]} 21. Bc4 {[%clk 0:02:28]}  Rd8 {[%clk 0:01:39]} 22. d5 {[%clk 0:02:25]}  Rc8 {[%clk 0:01:34]} 23. Bb3 {[%clk 0:02:19]}  Qf5 {[%clk 0:01:17]} 24. d6 {[%clk 0:02:06]}  Rf8 {[%clk 0:01:13]} 25. Qa7 {[%clk 0:01:58]}  Be5 {[%clk 0:00:43]} 26. d7 {[%clk 0:01:55]}  Rd8 {[%clk 0:00:42]} 27. Qe3 {[%clk 0:01:49]}  Bf6 {[%clk 0:00:37]} 28. Qe6 {[%clk 0:01:36]}  Qg5 {[%clk 0:00:31]} 29. Qf7 {[%clk 0:01:25]}  Qf5 {[%clk 0:00:09]} 30. Re1 {[%clk 0:01:23]} 1-0


[Site "https://www.chess.com"]

[Event "Titled Tuesday Blitz August 08 Early 2023"]
[White "Shubenkova, Veronika"]
[Black "Sagita, Catur Adi"]
[WhiteFideId "44124040"]
[BlackFideId "7104618"]
[WhiteElo "2518"]
[BlackElo "2653"]
[Result "0-1"]
[Round "7"]
[TimeControl "180+1"]
[Date "2023.08.08"]
[WhiteClock "0:00:00"]
[BlackClock "0:00:10"]
[Board "87"]

1. c4 {[%clk 0:03:00]}  Nf6 {[%clk 0:02:59]} 2. Nc3 {[%clk 0:03:00]}  g6 {[%clk 0:02:59]} 3. d4 {[%clk 0:03:00]}  Bg7 {[%clk 0:02:59]} 4. e4 {[%clk 0:03:00]}  O-O {[%clk 0:03:00]} 5. f3 {[%clk 0:03:00]}  d6 {[%clk 0:02:53]} 6. Be3 {[%clk 0:02:58]}  e5 {[%clk 0:02:47]} 7. d5 {[%clk 0:02:57]}  c6 {[%clk 0:02:46]} 8. Qd2 {[%clk 0:02:57]}  cxd5 {[%clk 0:02:46]} 9. cxd5 {[%clk 0:02:57]}  Na6 {[%clk 0:02:45]} 10. Bxa6 {[%clk 0:02:55]}  bxa6 {[%clk 0:02:45]} 11. Nge2 {[%clk 0:02:56]}  Bd7 {[%clk 0:02:39]} 12. O-O {[%clk 0:02:54]}  Qe7 {[%clk 0:02:33]} 13. h3 {[%clk 0:02:52]}  Nh5 {[%clk 0:02:32]} 14. g4 {[%clk 0:02:51]}  Nf6 {[%clk 0:02:24]} 15. Kg2 {[%clk 0:02:50]}  Rfc8 {[%clk 0:02:23]} 16. h4 {[%clk 0:02:49]}  h5 {[%clk 0:02:20]} 17. g5 {[%clk 0:02:46]}  Ne8 {[%clk 0:02:20]} 18. Ng3 {[%clk 0:02:44]}  Nc7 {[%clk 0:02:16]} 19. f4 {[%clk 0:02:44]}  exf4 {[%clk 0:02:14]} 20. Rxf4 {[%clk 0:02:38]}  Nb5 {[%clk 0:02:14]} 21. Nxb5 {[%clk 0:02:34]}  axb5 {[%clk 0:02:14]} 22. Raf1 {[%clk 0:02:32]}  Be8 {[%clk 0:02:14]} 23. Bd4 {[%clk 0:02:31]}  Bxd4 {[%clk 0:02:12]} 24. Qxd4 {[%clk 0:02:29]}  Rc2+ {[%clk 0:02:12]} 25. R1f2 {[%clk 0:02:28]}  Rac8 {[%clk 0:02:13]} 26. Rf6 {[%clk 0:02:18]}  R8c4 {[%clk 0:02:04]} 27. Qd3 {[%clk 0:02:17]}  Rxf2+ {[%clk 0:02:03]} 28. Rxf2 {[%clk 0:02:13]}  Qe5 {[%clk 0:02:03]} 29. Qf3 {[%clk 0:02:02]}  Kf8 {[%clk 0:01:50]} 30. Re2 {[%clk 0:01:46]}  Rc1 {[%clk 0:01:40]} 31. Qe3 {[%clk 0:01:41]}  Rc7 {[%clk 0:01:37]} 32. Rf2 {[%clk 0:01:36]}  Bd7 {[%clk 0:01:34]} 33. Qa3 {[%clk 0:01:07]}  Bg4 {[%clk 0:01:16]} 34. Qa5 {[%clk 0:01:04]}  Rc4 {[%clk 0:01:03]} 35. Qxa7 {[%clk 0:00:50]}  Qe7 {[%clk 0:01:02]} 36. Qb8+ {[%clk 0:00:46]}  Kg7 {[%clk 0:01:02]} 37. Qxb5 {[%clk 0:00:45]}  Rxe4 {[%clk 0:01:02]} 38. Nxe4 {[%clk 0:00:36]}  Qxe4+ {[%clk 0:01:03]} 39. Kg1 {[%clk 0:00:36]}  Qe3 {[%clk 0:00:52]} 40. Qb3 {[%clk 0:00:29]}  Qe1+ {[%clk 0:00:47]} 41. Rf1 {[%clk 0:00:26]}  Qxh4 {[%clk 0:00:45]} 42. Qc3+ {[%clk 0:00:25]}  Kg8 {[%clk 0:00:45]} 43. Qe3 {[%clk 0:00:24]}  Bf5 {[%clk 0:00:42]} 44. Qf4 {[%clk 0:00:17]}  Qh3 {[%clk 0:00:37]} 45. Qxd6 {[%clk 0:00:16]}  Qg4+ {[%clk 0:00:29]} 46. Kf2 {[%clk 0:00:16]}  Qd4+ {[%clk 0:00:26]} 47. Kg2 {[%clk 0:00:15]}  Be4+ {[%clk 0:00:22]} 48. Kh3 {[%clk 0:00:08]}  Qd3+ {[%clk 0:00:13]} 49. Kh2 {[%clk 0:00:06]}  Qxf1 {[%clk 0:00:12]} 50. Qb8+ {[%clk 0:00:00]}  Kh7 {[%clk 0:00:10]} 0-1


[Site "https://www.chess.com"]